[Event "*** Titled Tuesday 3|2 Blitz"]
[Site "Chess.com"]
[Date "2017.03.07"]
[Round "7"]
[White "WanderingPuppet"]
[Black "SabinaFoisor"]
[Result "1/2-1/2"]
[WhiteElo "2336"]
[BlackElo "2168"]
[TimeControl "180+2"]
[EndTime "14:38:10 PST"]
[Termination "Game drawn - insufficient material"]

1. Nc3 {[%clk 0:03:02]} 1... d5 {[%clk 0:02:59.8]} 2. d4 {[%clk 0:03:02.1]} 2...
Nf6 {[%clk 0:02:59.3]} 3. Bg5 {[%clk 0:03:01.2]} 3... h6 {[%clk 0:02:57.5]} 4.
Bxf6 {[%clk 0:02:59.4]} 4... exf6 {[%clk 0:02:59.4]} 5. Qd2 {[%clk 0:02:55.5]}
5... Bb4 {[%clk 0:02:59.2]} 6. a3 {[%clk 0:02:56.2]} 6... Bxc3 {[%clk
0:02:59.3]} 7. Qxc3 {[%clk 0:02:57]} 7... O-O {[%clk 0:02:59.4]} 8. O-O-O {[%clk
0:02:55]} 8... Bf5 {[%clk 0:02:57.2]} 9. f3 {[%clk 0:02:50.2]} 9... Qe7 {[%clk
0:02:54.7]} 10. g4 {[%clk 0:02:33.5]} 10... Bg6 {[%clk 0:02:54.8]} 11. Nh3
{[%clk 0:02:34.7]} 11... Re8 {[%clk 0:02:41.8]} 12. Nf4 {[%clk 0:02:33.4]} 12...
c6 {[%clk 0:02:40.9]} 13. h4 {[%clk 0:02:12.6]} 13... Qe3+ {[%clk 0:02:39.6]}
14. Qxe3 {[%clk 0:02:12]} 14... Rxe3 {[%clk 0:02:41.5]} 15. Kd2 {[%clk
0:02:05.8]} 15... Re7 {[%clk 0:02:40.9]} 16. e3 {[%clk 0:01:48.6]} 16... Nd7
{[%clk 0:02:40.1]} 17. Bd3 {[%clk 0:00:47.4]} 17... Bxd3 {[%clk 0:02:36]} 18.
Kxd3 {[%clk 0:00:49.3]} 18... Rae8 {[%clk 0:02:36.3]} 19. Rde1 {[%clk
0:00:50.4]} 19... g6 {[%clk 0:02:36.7]} 20. Rhg1 {[%clk 0:00:36.4]} 20... Kg7
{[%clk 0:02:34.2]} 21. e4 {[%clk 0:00:19.6]} 21... dxe4+ {[%clk 0:02:32.7]} 22.
fxe4 {[%clk 0:00:21.5]} 22... Nf8 {[%clk 0:02:32.7]} 23. d5 {[%clk 0:00:18.3]}
23... cxd5 {[%clk 0:02:24.5]} 24. Nxd5 {[%clk 0:00:20.2]} 24... Re5 {[%clk
0:02:16]} 25. c4 {[%clk 0:00:15.7]} 25... Nd7 {[%clk 0:02:15.6]} 26. Kd4 {[%clk
0:00:16.3]} 26... Nb8 {[%clk 0:02:14.9]} 27. b4 {[%clk 0:00:16.8]} 27... Nc6+
{[%clk 0:02:15.3]} 28. Kd3 {[%clk 0:00:18.1]} 28... a6 {[%clk 0:02:16.2]} 29. a4
{[%clk 0:00:12.6]} 29... b5 {[%clk 0:01:59.3]} 30. axb5 {[%clk 0:00:12]} 30...
axb5 {[%clk 0:02:01.2]} 31. cxb5 {[%clk 0:00:09.8]} 31... Ne7 {[%clk 0:01:57.9]}
32. Nxe7 {[%clk 0:00:06.2]} 32... R8xe7 {[%clk 0:01:57.4]} 33. b6 {[%clk
0:00:04.4]} 33... Rb7 {[%clk 0:01:57.7]} 34. Rc1 {[%clk 0:00:05.1]} 34... Rxb6
{[%clk 0:01:58.6]} 35. Rc4 {[%clk 0:00:06.7]} 35... Rd6+ {[%clk 0:01:54.4]} 36.
Rd4 {[%clk 0:00:06.5]} 36... Rc6 {[%clk 0:01:46.5]} 37. Rb1 {[%clk 0:00:07.2]}
37... Rb5 {[%clk 0:01:46.1]} 38. Rd5 {[%clk 0:00:08.2]} 38... Rb8 {[%clk
0:01:37.5]} 39. b5 {[%clk 0:00:08.9]} 39... Rcb6 {[%clk 0:01:37]} 40. Kc4 {[%clk
0:00:10.3]} 40... Kf8 {[%clk 0:01:33]} 41. Kc5 {[%clk 0:00:09.6]} 41... Ke7
{[%clk 0:01:33.1]} 42. e5 {[%clk 0:00:09.1]} 42... fxe5 {[%clk 0:01:33.1]} 43.
Rxe5+ {[%clk 0:00:10.2]} 43... Re6 {[%clk 0:01:34]} 44. Rxe6+ {[%clk 0:00:10.9]}
44... Kxe6 {[%clk 0:01:35.2]} 45. Kc6 {[%clk 0:00:11.6]} 45... f5 {[%clk
0:01:33.5]} 46. gxf5+ {[%clk 0:00:11.7]} 46... Kxf5 {[%clk 0:01:34.8]} 47. b6
{[%clk 0:00:11.9]} 47... g5 {[%clk 0:01:35.1]} 48. hxg5 {[%clk 0:00:12.2]} 48...
hxg5 {[%clk 0:01:37]} 49. Kc7 {[%clk 0:00:13.3]} 49... Rg8 {[%clk 0:01:36]} 50.
b7 {[%clk 0:00:14.5]} 50... g4 {[%clk 0:01:32.7]} 51. Rd1 {[%clk 0:00:13]} 51...
g3 {[%clk 0:01:29.3]} 52. Rd8 {[%clk 0:00:07.1]} 52... Rg7+ {[%clk 0:01:26.6]}
53. Rd7 {[%clk 0:00:08.1]} 53... Rg8 {[%clk 0:01:26.7]} 54. Rd8 {[%clk
0:00:09.3]} 54... Rxd8 {[%clk 0:01:26.6]} 55. Kxd8 {[%clk 0:00:10]} 55... g2
{[%clk 0:01:27.8]} 56. b8=Q {[%clk 0:00:11.1]} 56... g1=Q {[%clk 0:01:28.4]} 57.
Qc8+ {[%clk 0:00:11.2]} 57... Kf4 {[%clk 0:01:26]} 58. Qc7+ {[%clk 0:00:11.7]}
58... Kf3 {[%clk 0:01:25.5]} 59. Qf7+ {[%clk 0:00:11.7]} 59... Ke2 {[%clk
0:01:26]} 60. Qe6+ {[%clk 0:00:12.6]} 60... Qe3 {[%clk 0:01:25.4]} 61. Qxe3+
{[%clk 0:00:12.6]} 61... Kxe3 {[%clk 0:01:27.3]} 1/2-1/2

[Event "*** Titled Tuesday 3|2 Blitz"]
[Site "Chess.com"]
[Date "2017.03.07"]
[Round "7"]
[White "Matibar"]
[Black "jcibarra"]
[Result "1-0"]
[WhiteElo "2592"]
[BlackElo "2668"]
[TimeControl "180+2"]
[EndTime "14:38:12 PST"]
[Termination "Matibar won by resignation"]

1. e4 {[%clk 0:03:02]} 1... e5 {[%clk 0:03:00.2]} 2. Nf3 {[%clk 0:03:02.5]} 2...
d6 {[%clk 0:03:01.7]} 3. d4 {[%clk 0:03:02]} 3... exd4 {[%clk 0:03:03.6]} 4.
Nxd4 {[%clk 0:03:03.5]} 4... Nf6 {[%clk 0:03:04.2]} 5. Nc3 {[%clk 0:03:05]} 5...
Be7 {[%clk 0:03:05.4]} 6. g3 {[%clk 0:03:05.9]} 6... O-O {[%clk 0:03:05.3]} 7.
Bg2 {[%clk 0:03:06.7]} 7... Nc6 {[%clk 0:03:07]} 8. Nde2 {[%clk 0:03:01]} 8...
Rb8 {[%clk 0:02:54.6]} 9. a4 {[%clk 0:02:56.6]} 9... a6 {[%clk 0:02:53.8]} 10.
a5 {[%clk 0:02:56.2]} 10... Re8 {[%clk 0:02:38.6]} 11. O-O {[%clk 0:02:55.6]}
11... Bf8 {[%clk 0:02:40.2]} 12. h3 {[%clk 0:02:55.4]} 12... g6 {[%clk
0:02:38.2]} 13. Bg5 {[%clk 0:02:54]} 13... h6 {[%clk 0:02:32.5]} 14. Be3 {[%clk
0:02:53.5]} 14... Bg7 {[%clk 0:02:33.9]} 15. b3 {[%clk 0:02:39.3]} 15... Kh7
{[%clk 0:02:25.7]} 16. Qd2 {[%clk 0:02:39]} 16... Be6 {[%clk 0:02:14.9]} 17. Nf4
{[%clk 0:02:35.5]} 17... Nd7 {[%clk 0:02:13.3]} 18. Nxe6 {[%clk 0:02:20]} 18...
Rxe6 {[%clk 0:01:53.7]} 19. h4 {[%clk 0:01:54]} 19... Nf6 {[%clk 0:01:36.8]} 20.
Nd5 {[%clk 0:01:34.3]} 20... Nxe4 {[%clk 0:01:30]} 21. Bxe4 {[%clk 0:01:30.8]}
21... Rxe4 {[%clk 0:01:31.9]} 22. Rad1 {[%clk 0:01:30.7]} 22... Ne7 {[%clk
0:01:18.4]} 23. Nc3 {[%clk 0:01:26.1]} 23... Re5 {[%clk 0:01:15.7]} 24. Bd4
{[%clk 0:01:12.4]} 24... Re6 {[%clk 0:00:56.2]} 25. h5 {[%clk 0:01:09.1]} 25...
Bxd4 {[%clk 0:00:37.1]} 26. Qxd4 {[%clk 0:01:03.9]} 26... Nc6 {[%clk 0:00:35.4]}
27. Qf4 {[%clk 0:00:51.4]} 27... Rf6 {[%clk 0:00:24.7]} 28. Qe4 {[%clk
0:00:42.4]} 28... Kg7 {[%clk 0:00:17.2]} 29. Nd5 {[%clk 0:00:39.1]} 29... Re6
{[%clk 0:00:17.8]} 30. Qf3 {[%clk 0:00:39.6]} 30... Ne5 {[%clk 0:00:18.2]} 31.
Qc3 {[%clk 0:00:40]} 31... Kh7 {[%clk 0:00:14.7]} 32. f4 {[%clk 0:00:38.8]}
32... Ng4 {[%clk 0:00:15.9]} 33. f5 {[%clk 0:00:38.6]} 33... gxf5 {[%clk
0:00:13.2]} 34. Rxf5 {[%clk 0:00:38.7]} 34... Qg8 {[%clk 0:00:13.8]} 35. Qxc7
{[%clk 0:00:35.6]} 35... Ne3 {[%clk 0:00:12.4]} 36. Rxf7+ {[%clk 0:00:19.6]}
36... Kh8 {[%clk 0:00:13.2]} 37. Rh7+ {[%clk 0:00:20.5]} 37... Qxh7 {[%clk
0:00:13.8]} 38. Qxb8+ {[%clk 0:00:21.5]} 38... Qg8 {[%clk 0:00:15.2]} 39. Qxg8+
{[%clk 0:00:21.5]} 39... Kxg8 {[%clk 0:00:17.1]} 40. Re1 {[%clk 0:00:19.2]}
40... Re5 {[%clk 0:00:15.5]} 41. Nxe3 {[%clk 0:00:19.5]} 41... Rxh5 {[%clk
0:00:15.5]} 42. b4 {[%clk 0:00:20.1]} 42... Re5 {[%clk 0:00:16.3]} 43. c3 {[%clk
0:00:20.3]} 43... Re4 {[%clk 0:00:15.9]} 44. Kf2 {[%clk 0:00:21.1]} 44... Kg7
{[%clk 0:00:16.3]} 1-0

[Event "*** Titled Tuesday 3|2 Blitz"]
[Site "Chess.com"]
[Date "2017.03.07"]
[Round "7"]
[White "peteseeger"]
[Black "Jahonas"]
[Result "1-0"]
[WhiteElo "2105"]
[BlackElo "2157"]
[TimeControl "180+2"]
[EndTime "14:38:12 PST"]
[Termination "peteseeger won by resignation"]

1. e4 {[%clk 0:03:02]} 1... c5 {[%clk 0:02:59.3]} 2. Nf3 {[%clk 0:03:02.7]} 2...
d6 {[%clk 0:02:57.4]} 3. Bb5+ {[%clk 0:03:02.1]} 3... Bd7 {[%clk 0:02:57.9]} 4.
Bxd7+ {[%clk 0:03:02.1]} 4... Qxd7 {[%clk 0:02:59.1]} 5. O-O {[%clk 0:03:02.9]}
5... Nc6 {[%clk 0:03:00.4]} 6. c3 {[%clk 0:03:02.7]} 6... Nf6 {[%clk 0:03:01.6]}
7. Re1 {[%clk 0:03:03.5]} 7... e6 {[%clk 0:03:02.9]} 8. d4 {[%clk 0:03:04.5]}
8... cxd4 {[%clk 0:03:03.4]} 9. cxd4 {[%clk 0:03:06]} 9... Be7 {[%clk
0:03:04.5]} 10. Nc3 {[%clk 0:03:05.9]} 10... O-O {[%clk 0:03:04.8]} 11. d5
{[%clk 0:03:04.9]} 11... exd5 {[%clk 0:03:02.3]} 12. exd5 {[%clk 0:03:02.5]}
12... Nb4 {[%clk 0:02:56.6]} 13. a3 {[%clk 0:02:59.4]} 13... Na6 {[%clk
0:02:57.2]} 14. Nd4 {[%clk 0:02:58.1]} 14... Rfe8 {[%clk 0:02:56.9]} 15. Bg5
{[%clk 0:02:57.5]} 15... h6 {[%clk 0:02:53]} 16. Bf4 {[%clk 0:02:46.9]} 16...
Nc5 {[%clk 0:02:47.6]} 17. Qf3 {[%clk 0:02:46.4]} 17... a5 {[%clk 0:02:44.6]}
18. Re3 {[%clk 0:02:13.2]} 18... Ng4 {[%clk 0:02:35.8]} 19. Re2 {[%clk
0:01:55.5]} 19... Bf6 {[%clk 0:02:34.2]} 20. Ndb5 {[%clk 0:01:31.3]} 20... Ne5
{[%clk 0:02:29.1]} 21. Qg3 {[%clk 0:01:30.9]} 21... Kh8 {[%clk 0:01:36.7]} 22.
Rae1 {[%clk 0:01:29.9]} 22... Ncd3 {[%clk 0:01:35.7]} 23. Bxe5 {[%clk
0:01:21.7]} 23... Nxe5 {[%clk 0:01:22.3]} 24. f4 {[%clk 0:01:09.5]} 24... Nc4
{[%clk 0:01:20.6]} 25. Rxe8+ {[%clk 0:01:07]} 25... Rxe8 {[%clk 0:01:20.3]} 26.
Rxe8+ {[%clk 0:01:07.6]} 26... Qxe8 {[%clk 0:01:22.2]} 27. h3 {[%clk 0:01:05.2]}
27... Bxc3 {[%clk 0:01:16.6]} 28. Nxc3 {[%clk 0:01:01.4]} 28... b5 {[%clk
0:01:11]} 29. f5 {[%clk 0:00:44.3]} 29... b4 {[%clk 0:01:00.9]} 30. axb4 {[%clk
0:00:44.3]} 30... axb4 {[%clk 0:01:01.3]} 31. Na2 {[%clk 0:00:38.3]} 31... Qa4
{[%clk 0:00:54.2]} 32. b3 {[%clk 0:00:30.6]} 32... Qxa2 {[%clk 0:00:47.8]} 33.
bxc4 {[%clk 0:00:31.6]} 33... Qxc4 {[%clk 0:00:37.8]} 34. Qxd6 {[%clk
0:00:31.3]} 34... Qd4+ {[%clk 0:00:34.4]} 35. Kh2 {[%clk 0:00:29.1]} 35... Kh7
{[%clk 0:00:28.5]} 36. f6 {[%clk 0:00:26.7]} 36... gxf6 {[%clk 0:00:23.3]} 37.
Qd7 {[%clk 0:00:20.5]} 37... Kg7 {[%clk 0:00:22.4]} 38. d6 {[%clk 0:00:20.9]}
38... Qe5+ {[%clk 0:00:22.9]} 39. Kh1 {[%clk 0:00:20.5]} 39... h5 {[%clk
0:00:23]} 40. Qe7 {[%clk 0:00:19.2]} 40... Qa1+ {[%clk 0:00:19.7]} 41. Kh2
{[%clk 0:00:20]} 41... b3 {[%clk 0:00:21]} 42. d7 {[%clk 0:00:20.4]} 42... b2
{[%clk 0:00:22.4]} 43. d8=Q {[%clk 0:00:21.3]} 43... b1=Q {[%clk 0:00:23.7]} 44.
Qdf8+ {[%clk 0:00:19.9]} 44... Kg6 {[%clk 0:00:23.8]} 45. Qfxf7+ {[%clk
0:00:17.5]} 45... Kf5 {[%clk 0:00:24.9]} 46. Qd5+ {[%clk 0:00:17.4]} 46... Qe5+
{[%clk 0:00:24.7]} 47. Qdxe5+ {[%clk 0:00:17.6]} 47... fxe5 {[%clk 0:00:25.7]}
48. Qh7+ {[%clk 0:00:18.6]} 1-0

[Event "*** Titled Tuesday 3|2 Blitz"]
[Site "Chess.com"]
[Date "2017.03.07"]
[Round "7"]
[White "chessking2151"]
[Black "Saitama_Hero"]
[Result "1-0"]
[WhiteElo "2378"]
[BlackElo "2221"]
[TimeControl "180+2"]
[EndTime "14:38:15 PST"]
[Termination "chessking2151 won by resignation"]

1. e4 {[%clk 0:03:02]} 1... c5 {[%clk 0:02:57.8]} 2. Nf3 {[%clk 0:03:01.6]} 2...
e6 {[%clk 0:02:55.1]} 3. c3 {[%clk 0:02:55]} 3... d5 {[%clk 0:02:54.5]} 4. exd5
{[%clk 0:02:55.6]} 4... Qxd5 {[%clk 0:02:55.3]} 5. d4 {[%clk 0:02:55.3]} 5...
Nf6 {[%clk 0:02:56.8]} 6. Be2 {[%clk 0:02:50.6]} 6... cxd4 {[%clk 0:02:56.5]} 7.
cxd4 {[%clk 0:02:44]} 7... Bb4+ {[%clk 0:02:57.7]} 8. Nc3 {[%clk 0:02:35.4]}
8... O-O {[%clk 0:02:58.6]} 9. O-O {[%clk 0:02:36]} 9... Bxc3 {[%clk 0:02:59.2]}
10. bxc3 {[%clk 0:02:37.3]} 10... b6 {[%clk 0:03:00.3]} 11. Qb3 {[%clk 0:02:35]}
11... Qd7 {[%clk 0:02:56.1]} 12. Ne5 {[%clk 0:02:34.3]} 12... Qc7 {[%clk
0:02:55.9]} 13. Bf4 {[%clk 0:02:32.8]} 13... Nd5 {[%clk 0:02:53.5]} 14. Bd2
{[%clk 0:02:29.2]} 14... Ba6 {[%clk 0:02:52.8]} 15. c4 {[%clk 0:02:28.1]} 15...
Nd7 {[%clk 0:02:51.9]} 16. Nxd7 {[%clk 0:02:20.7]} 16... Qxd7 {[%clk 0:02:53.8]}
17. Bf3 {[%clk 0:02:21.5]} 17... Nf6 {[%clk 0:02:44.8]} 18. Bxa8 {[%clk
0:02:20]} 18... Rxa8 {[%clk 0:02:46.7]} 19. Be3 {[%clk 0:02:21.2]} 19... Rc8
{[%clk 0:02:46.7]} 20. Rac1 {[%clk 0:02:22.4]} 20... Qc6 {[%clk 0:02:45.5]} 21.
d5 {[%clk 0:02:14.4]} 21... Qd7 {[%clk 0:02:43.2]} 22. dxe6 {[%clk 0:02:11.6]}
22... Qxe6 {[%clk 0:02:45.1]} 23. Qa4 {[%clk 0:02:08.6]} 23... Bb7 {[%clk
0:02:37.9]} 24. Qc2 {[%clk 0:01:46.5]} 24... Re8 {[%clk 0:02:20.3]} 25. Bf4
{[%clk 0:01:28.3]} 25... h5 {[%clk 0:01:49.3]} 26. Qd2 {[%clk 0:01:07.7]} 26...
Ne4 {[%clk 0:01:25.6]} 27. Qd3 {[%clk 0:00:55]} 27... Qc6 {[%clk 0:01:10.4]} 28.
Rfe1 {[%clk 0:00:37.9]} 28... Re6 {[%clk 0:01:06.8]} 29. f3 {[%clk 0:00:27.3]}
29... Nc5 {[%clk 0:01:06.4]} 30. Qd8+ {[%clk 0:00:23]} 30... Kh7 {[%clk
0:01:07.6]} 31. Qg5 {[%clk 0:00:19.8]} 31... Rg6 {[%clk 0:01:00.8]} 32. Qxh5+
{[%clk 0:00:19.3]} 32... Kg8 {[%clk 0:01:02.3]} 33. Rcd1 {[%clk 0:00:16.7]}
33... Ne6 {[%clk 0:01:01.9]} 34. Rxe6 {[%clk 0:00:13.1]} 34... Rxe6 {[%clk
0:00:53.2]} 35. Qd5 {[%clk 0:00:11.1]} 35... Re2 {[%clk 0:00:38.6]} 36. Qd8+
{[%clk 0:00:10.2]} 36... Kh7 {[%clk 0:00:38.6]} 37. Qh4+ {[%clk 0:00:11.3]}
37... Kg6 {[%clk 0:00:36.2]} 38. Rd6+ {[%clk 0:00:11.5]} 38... Qxd6 {[%clk
0:00:37.7]} 39. Bxd6 {[%clk 0:00:12.5]} 39... Rxa2 {[%clk 0:00:37.7]} 40. Qg4+
{[%clk 0:00:13.1]} 40... Kh7 {[%clk 0:00:38.6]} 41. Qh5+ {[%clk 0:00:13.7]}
41... Kg8 {[%clk 0:00:40.1]} 42. Qg5 {[%clk 0:00:14.7]} 42... f6 {[%clk
0:00:40.1]} 43. Qg6 {[%clk 0:00:14.8]} 43... a5 {[%clk 0:00:41]} 44. Bf4 {[%clk
0:00:15.6]} 44... Re2 {[%clk 0:00:40.2]} 45. Bh6 {[%clk 0:00:16]} 45... Re7
{[%clk 0:00:41.4]} 46. Bd2 {[%clk 0:00:16.6]} 46... Bc6 {[%clk 0:00:41.1]} 47.
Kf2 {[%clk 0:00:16.5]} 47... a4 {[%clk 0:00:42.6]} 48. Bb4 {[%clk 0:00:16.7]}
48... Rd7 {[%clk 0:00:40.5]} 49. Qe8+ {[%clk 0:00:17.6]} 49... Kh7 {[%clk
0:00:40.3]} 50. Qh5+ {[%clk 0:00:18.8]} 50... Kg8 {[%clk 0:00:40.4]} 51. Qf5
{[%clk 0:00:19.6]} 51... Re7 {[%clk 0:00:36.9]} 52. Bxe7 {[%clk 0:00:19.9]} 1-0

[Event "*** Titled Tuesday 3|2 Blitz"]
[Site "Chess.com"]
[Date "2017.03.07"]
[Round "7"]
[White "alekroth64"]
[Black "CM_Perligero"]
[Result "0-1"]
[WhiteElo "2259"]
[BlackElo "2150"]
[TimeControl "180+2"]
[EndTime "14:38:23 PST"]
[Termination "CM_Perligero won on time"]

1. d4 {[%clk 0:03:02]} 1... Nf6 {[%clk 0:02:59.1]} 2. c4 {[%clk 0:03:02.8]} 2...
c6 {[%clk 0:02:56.6]} 3. Nf3 {[%clk 0:03:01]} 3... d5 {[%clk 0:02:58.1]} 4. Nc3
{[%clk 0:03:00.6]} 4... e6 {[%clk 0:02:52.3]} 5. Bg5 {[%clk 0:03:00.2]} 5... Be7
{[%clk 0:02:53]} 6. e3 {[%clk 0:03:00.1]} 6... Qa5 {[%clk 0:02:39.9]} 7. cxd5
{[%clk 0:02:42.5]} 7... Nxd5 {[%clk 0:02:33]} 8. Bxe7 {[%clk 0:02:41.7]} 8...
Nxc3 {[%clk 0:02:31.2]} 9. Qd2 {[%clk 0:02:34]} 9... Kxe7 {[%clk 0:02:16.7]} 10.
bxc3 {[%clk 0:02:34]} 10... Nd7 {[%clk 0:02:13]} 11. Bd3 {[%clk 0:02:34.3]}
11... h6 {[%clk 0:02:12.3]} 12. O-O {[%clk 0:02:34.7]} 12... g5 {[%clk
0:02:10.2]} 13. Qb2 {[%clk 0:02:34.4]} 13... b6 {[%clk 0:02:04.3]} 14. Nd2
{[%clk 0:02:33.8]} 14... Ba6 {[%clk 0:01:58.7]} 15. c4 {[%clk 0:02:22]} 15...
Bb7 {[%clk 0:01:53.7]} 16. a4 {[%clk 0:02:17.7]} 16... g4 {[%clk 0:01:43.9]} 17.
c5 {[%clk 0:02:08.2]} 17... bxc5 {[%clk 0:01:10.2]} 18. Nc4 {[%clk 0:01:52.4]}
18... Qc7 {[%clk 0:01:09]} 19. dxc5 {[%clk 0:01:50.4]} 19... Ba6 {[%clk
0:00:59.7]} 20. Qd4 {[%clk 0:01:30.4]} 20... Nf6 {[%clk 0:00:50.4]} 21. Nd6
{[%clk 0:01:23.4]} 21... Bxd3 {[%clk 0:00:42.7]} 22. Qxd3 {[%clk 0:01:25.3]}
22... Rad8 {[%clk 0:00:43.3]} 23. Rab1 {[%clk 0:01:22.7]} 23... Rb8 {[%clk
0:00:41.4]} 24. Qd4 {[%clk 0:01:10.2]} 24... h5 {[%clk 0:00:38.2]} 25. Qe5
{[%clk 0:01:07.4]} 25... Nd5 {[%clk 0:00:29]} 26. Qg5+ {[%clk 0:00:42.7]} 26...
Kf8 {[%clk 0:00:21.1]} 27. e4 {[%clk 0:00:31.4]} 27... Nb4 {[%clk 0:00:13.6]}
28. Qf6 {[%clk 0:00:18.5]} 28... Rh7 {[%clk 0:00:13.2]} 29. Qe5 {[%clk
0:00:15.1]} 29... a5 {[%clk 0:00:10]} 30. Qf6 {[%clk 0:00:12.3]} 30... Qe7
{[%clk 0:00:07.5]} 31. Qd4 {[%clk 0:00:10.2]} 31... Rd8 {[%clk 0:00:07.6]} 32.
Qe5 {[%clk 0:00:10]} 32... f6 {[%clk 0:00:07.7]} 33. Qc3 {[%clk 0:00:09.9]}
33... e5 {[%clk 0:00:07.4]} 34. Qc4 {[%clk 0:00:10.6]} 34... Rg7 {[%clk
0:00:06.7]} 35. Nf5 {[%clk 0:00:08.8]} 35... Qf7 {[%clk 0:00:07.7]} 36. Qc1
{[%clk 0:00:06.9]} 36... Rg5 {[%clk 0:00:07.6]} 37. Rd1 {[%clk 0:00:06]} 37...
Rd7 {[%clk 0:00:04.3]} 0-1

[Event "*** Titled Tuesday 3|2 Blitz"]
[Site "Chess.com"]
[Date "2017.03.07"]
[Round "7"]
[White "Chesstrainer1"]
[Black "poummba"]
[Result "1-0"]
[WhiteElo "2341"]
[BlackElo "2348"]
[TimeControl "180+2"]
[EndTime "14:38:28 PST"]
[Termination "Chesstrainer1 won by resignation"]

1. Nf3 {[%clk 0:03:01.9]} 1... g6 {[%clk 0:03:01]} 2. c4 {[%clk 0:03:00.5]} 2...
Bg7 {[%clk 0:03:02.5]} 3. Nc3 {[%clk 0:03:00.7]} 3... d6 {[%clk 0:03:04]} 4. d4
{[%clk 0:02:54.9]} 4... e5 {[%clk 0:03:04.8]} 5. e4 {[%clk 0:02:46.3]} 5... exd4
{[%clk 0:03:05.2]} 6. Nxd4 {[%clk 0:02:46.7]} 6... Ne7 {[%clk 0:03:06.8]} 7. Be2
{[%clk 0:02:38.8]} 7... O-O {[%clk 0:03:07.6]} 8. O-O {[%clk 0:02:39.2]} 8...
Nbc6 {[%clk 0:03:09]} 9. Nc2 {[%clk 0:02:28.1]} 9... f5 {[%clk 0:03:09.7]} 10.
exf5 {[%clk 0:02:25.8]} 10... Nxf5 {[%clk 0:03:10.6]} 11. Ne3 {[%clk 0:02:00.1]}
11... Ncd4 {[%clk 0:03:02.7]} 12. Bd3 {[%clk 0:01:52.1]} 12... Bd7 {[%clk
0:02:48.8]} 13. Ncd5 {[%clk 0:01:47.8]} 13... c6 {[%clk 0:02:42]} 14. Nxf5
{[%clk 0:01:48.2]} 14... Bxf5 {[%clk 0:02:34]} 15. Bxf5 {[%clk 0:01:42]} 15...
cxd5 {[%clk 0:02:19.7]} 16. Bd3 {[%clk 0:01:42.3]} 16... dxc4 {[%clk 0:02:19.7]}
17. Bxc4+ {[%clk 0:01:43.3]} 17... d5 {[%clk 0:02:21.2]} 18. Bd3 {[%clk
0:01:22.2]} 18... Ne6 {[%clk 0:02:01.7]} 19. Be3 {[%clk 0:01:14.8]} 19... Nf4
{[%clk 0:01:29.1]} 20. Bxf4 {[%clk 0:01:07.8]} 20... Rxf4 {[%clk 0:01:29.5]} 21.
g3 {[%clk 0:01:08.9]} 21... Rb4 {[%clk 0:01:27.4]} 22. h4 {[%clk 0:00:58.7]}
22... Rxb2 {[%clk 0:01:23.1]} 23. h5 {[%clk 0:00:58.9]} 23... Qf6 {[%clk
0:01:20.5]} 24. hxg6 {[%clk 0:00:58.4]} 24... hxg6 {[%clk 0:01:21.6]} 25. Bc2
{[%clk 0:00:52.1]} 25... d4 {[%clk 0:01:06.4]} 26. Rb1 {[%clk 0:00:42.2]} 26...
Rxb1 {[%clk 0:00:57.9]} 27. Qxb1 {[%clk 0:00:42.4]} 27... Rd8 {[%clk 0:00:51.1]}
28. Bxg6 {[%clk 0:00:33.1]} 28... Rd6 {[%clk 0:00:46.1]} 29. Bd3 {[%clk
0:00:33.3]} 29... Rb6 {[%clk 0:00:44.6]} 30. Qe1 {[%clk 0:00:31.1]} 30... Qe5
{[%clk 0:00:40.3]} 31. Qc1 {[%clk 0:00:27.2]} 31... Rc6 {[%clk 0:00:17.7]} 32.
Qd1 {[%clk 0:00:27.3]} 32... Rc3 {[%clk 0:00:17.5]} 33. Qb1 {[%clk 0:00:21]}
33... Bh6 {[%clk 0:00:12.8]} 34. Re1 {[%clk 0:00:20.5]} 34... Qxe1+ {[%clk
0:00:12.1]} 35. Qxe1 {[%clk 0:00:21.2]} 35... Rc1 {[%clk 0:00:13.7]} 36. Qxc1
{[%clk 0:00:16.6]} 36... Bxc1 {[%clk 0:00:15.6]} 37. Kg2 {[%clk 0:00:17.6]}
37... Kg7 {[%clk 0:00:16.6]} 38. f4 {[%clk 0:00:18.7]} 38... Ba3 {[%clk
0:00:10.4]} 39. Kf3 {[%clk 0:00:20]} 39... Kf6 {[%clk 0:00:10]} 40. g4 {[%clk
0:00:21.1]} 40... Be7 {[%clk 0:00:04.5]} 41. g5+ {[%clk 0:00:22.4]} 41... Ke6
{[%clk 0:00:05.4]} 42. Ke4 {[%clk 0:00:18.5]} 42... Bc5 {[%clk 0:00:03.8]} 43.
f5+ {[%clk 0:00:19.1]} 43... Kf7 {[%clk 0:00:05.3]} 44. f6 {[%clk 0:00:18.4]}
44... Kg6 {[%clk 0:00:05.6]} 45. Kf4+ {[%clk 0:00:19.5]} 45... Kf7 {[%clk
0:00:06.5]} 46. Kf5 {[%clk 0:00:20.4]} 46... Kf8 {[%clk 0:00:07.8]} 47. g6
{[%clk 0:00:21.5]} 1-0